Cogmind - Beta 13 @@@ ROGUE MODE // 2024.03.18 @ 23:55:00 Player: Dylbot Result: Destroyed by G-34 Mercenary with Small Laser Performance ------------- Evolutions (1) 500 Regions Visited (2) 400 Robots Destroyed (26) 130 Value Destroyed (403) 403 Prototype IDs (2) 40 Alien Tech Used (0) 0 Bonus (16) 16 TOTAL SCORE: 1489 Bonus ------- High Alert Combat Kills 16 Cogmind --------- Core Integrity 0/400 Matter 151/300 Energy 100/100 System Corruption 0% Temperature Cool (6) Movement Core (50) Location -9/Materials Parts ------- > --- POWER (2) -------- (None) > --- PROPULSION (2) --- (None) > --- UTILITY (2) ------ Core Shielding > --- WEAPON (3) ------- (None) > --- INVENTORY (5) ---- Core Shielding Light EM Pulse Cannon Light EM Pulse Cannon Light EM Pulse Cannon Light EM Pulse Cannon Peak State ------------ > --- POWER ------------ Light Ion Engine > --- PROPULSION ------- Improved Aluminum Leg Improved Aluminum Leg > --- UTILITY ---------- Core Shielding Core Shielding > --- WEAPON ----------- Beam Rifle Light EM Pulse Cannon Light EM Pulse Cannon > --- INVENTORY -------- Aluminum Leg Aluminum Leg Core Shielding Light Assault Rifle Light Assault Rifle [Rating: 13] Favorites ----------- Power Ion Engine Engine Ion Engine Propulsion Light Treads Treads Light Treads Leg Improved Aluminum Leg Utility Core Shielding Device ECM Suite Storage Small Storage Unit Processor Signal Interpreter Protection Core Shielding Weapon Light Assault Rifle Energy Gun Beam Rifle Energy Cannon Light EM Pulse Cannon Ballistic Gun Light Assault Rifle Launcher Mini Grenade Launcher Build | -11 -10 -9 ------- Run | Yrd Mat Mat Slots Evolved 2 | . . 2 Power 1 | . . 1 Propulsion . | . . . Utility . | . . . Weapon 1 | . . 1 Parts Attached 23 | 7 5 11 Power 3 | 2 1 . Engine 3 | 2 1 . Core . | . . . Reactor . | . . . Propulsion 4 | 2 . 2 Treads 2 | 2 . . Leg 2 | . . 2 Wheel . | . . . Hover . | . . . Flight . | . . . Utility 7 | 1 2 4 Device 1 | . 1 . Storage 1 | 1 . . Processor 1 | . 1 . Hackware . | . . . Protection 4 | . . 4 Artifact . | . . . Weapon 9 | 2 2 5 Energy Gun 1 | . . 1 Energy Cannon 2 | . . 2 Ballistic Gun 5 | 2 1 2 Ballistic Cannon . | . . . Launcher 1 | . 1 . Special Weapon . | . . . Impact Weapon . | . . . Slashing Weapon . | . . . Piercing Weapon . | . . . Special Melee Weapon . | . . . Unidentified Prototypes . | . . . Parts Lost 7 | . . 7 Power 1 | . . 1 Propulsion 2 | . . 2 Utility 1 | . . 1 Weapon 3 | . . 3 Highest Loss Streak 7 | . . 7 To Critical Strikes . | . . . Average Slot Usage (%) 88 | . 96 75 Engine 11 | . 13 9 Treads 18 | . 28 4 Leg 5 | . . 13 Device 7 | . 12 . Storage 3 | . 5 . Processor 5 | . 8 . Protection 7 | . . 19 Energy Gun 2 | . . 5 Energy Cannon 2 | . . 7 Ballistic Gun 16 | . 17 15 Launcher 5 | . 9 . Naked Turns . | . . . Heaviest Build 16 | 13 15 16 Greatest Support 40 | 40 40 40 Greatest Overweight (x) 1 | . . 1 Average Overweight (x) . | . . . Largest Inventory Capacity 8 | 8 8 5 Average Capacity 5 | 6 6 5 Most Carried 5 | 4 5 5 Average Carried 3 | 1 2 4 Final Capacity 8 | 8 5 5 Final Carried 5 | 2 5 5 Class Distribution -------------------- 69% | Mutant 30% | Tank Dominant Class ---------------- Mutant | -10/Materials Tank | -9/Materials Resources | -11 -10 -9 ----------- Run | Yrd Mat Mat Matter Collected 531 | 37 359 135 Remotely . | . . . Salvage Created 612 | . 477 135 Parts 36 | . 31 5 Haulers Intercepted . | . . . Recyclers Shooed 2 | . 2 . Parts Field Recycled . | . . . Retrieved Matter . | . . . Parts Self-Destructed . | . . . Prevented . | . . . Kills | -11 -10 -9 ------- Run | Yrd Mat Mat Combat Hostiles Destroyed 12 | . 8 4 Guns 4 | . 2 2 Cannons 2 | . . 2 AOE 6 | . 6 . Classes Destroyed 9 | . 8 1 Worker 3 | . 3 . Builder 4 | . 4 . Tunneler 1 | . 1 . Recycler 2 | . 2 . Mechanic 1 | . 1 . Watcher 3 | . 3 . Swarmer 5 | . 3 2 Grunt 6 | . 5 1 Brawler 1 | . . 1 Best Kill Streak 8 | . 8 2 Combat Bots Only 4 | . 4 2 Max Kills in Single Turn 2 | . 2 2 Gunslinging . | . . . Exploded 1 | . 1 . Melee . | . . . Uniques/NPCs Destroyed . | . . . Combat | -11 -10 -9 -------- Run | Yrd Mat Mat Hostile Shots Fired 135 | . 17 118 Missed 39 | . 2 37 Damage Taken 1241 | . 313 928 Core 464 | . 60 404 Absorbed by Shields . | . . . Redirected to Shielding 82 | . . 82 Core Remaining (%) 88 | 100 76 . Volleys Fired 36 | . 25 11 Largest 3 | . 2 3 Hottest 168 | . 50 168 Shots Fired 77 | . 44 33 Gun 52 | . 25 27 Cannon 6 | . . 6 Launcher 19 | . 19 . Special . | . . . Kinetic 49 | . 25 24 Thermal 3 | . . 3 Explosive 19 | . 19 . Electromagnetic 6 | . . 6 Robot Hit Streak 5 | . 5 4 Robot Miss Streak 3 | . 3 2 Penetration Max . | . . . Secondary Targets 1 | . . 1 Max Gunslinging Chain 1 | . . 1 Shots Hit Robots 41 | . 24 17 Core Hits 36 | . 29 7 Critical Kills . | . . . Critical Parts Destroyed . | . . . Critical Strikes 1 | . . 1 Burn 1 | . . 1 Melee Attacks . | . . . Impact . | . . . Slashing . | . . . Piercing . | . . . Sneak Attacks . | . . . Combat Hostiles . | . . . Follow-up Attacks . | . . . Damage Inflicted 1307 | . 1098 209 Guns 256 | . 141 115 Cannons 94 | . . 94 Explosions 957 | . 957 . Melee . | . . . Ramming . | . . . Kinetic 226 | . 141 85 Thermal 30 | . . 30 Explosive 957 | . 957 . Electromagnetic 94 | . . 94 Impact . | . . . Slashing . | . . . Piercing . | . . . Highest Corruption . | . . . Average Corruption . | . . . Corruption Purged . | . . . Corruption Blocked . | . . . Overload Shots . | . . . Overflow Damage 6 | . 6 . Projectiles . | . . . Explosions 6 | . 6 . Melee . | . . . Knockbacks . | . . . Impact . | . . . Kinetic . | . . . Secondary . | . . . Self-Inflicted Damage 160 | . 160 . Shots 6 | . 6 . Rammed 1 | . 1 . Targets Rammed 1 | . 1 . Kicked . | . . . Crushed . | . . . Highest Temperature 99 | . 2 99 Average Temperature 32 | . 2 35 Received Heat Transfer 363 | . 63 300 Siege Activations . | . . . Robots Corrupted . | . . . Combat Hostiles . | . . . Parts Fried . | . . . Impact Corruptions . | . . . Robots Melted . | . . . Combat Hostiles . | . . . Parts Melted . | . . . Heat Transferred 148 | . . 148 Parts Sabotaged . | . . . Parts Stolen . | . . . Parts Stripped . | . . . Power Chain Reactions . | . . . Alert | -11 -10 -9 ------- Run | Yrd Mat Mat Peak Influence 461 | . 461 244 Initial 109 | . . 109 Average 150 | . 174 156 Maximum Alert Level 2 | . 2 1 Low Security (%) 70 | 100 54 87 Level 1 24 | . 36 12 Level 2 4 | . 9 . Level 3 . | . . . Level 4 . | . . . Level 5 . | . . . High Security . | . . . Max Security . | . . . Squads Dispatched 3 | . 3 . Investigation 2 | . 2 . Extermination . | . . . Reinforcement 1 | . 1 . Assault . | . . . Garrison . | . . . Intercept . | . . . Searches Triggered . | . . . Construction Impeded . | . . . Haulers Reinforced . | . . . Active Scanning Responses . | . . . Cargo Convoy Interrupts . | . . . Stealth | -11 -10 -9 --------- Run | Yrd Mat Mat Distress Signals 2 | . 2 . Communications Jammed . | . . . Distress Signals . | . . . Times Spotted 24 | . 16 8 Peak Tracking Total 5 | . 4 5 Tactical Retreats 3 | . 2 1 Traps | -11 -10 -9 ------- Run | Yrd Mat Mat Traps Triggered 1 | . 1 . Indirectly . | . . . Trap Hack Attempts . | . . . Triggered . | . . . Disarmed . | . . . Reprogrammed . | . . . Reused . | . . . Traps Extracted . | . . . Installed . | . . . Triggered . | . . . Machines | -11 -10 -9 ---------- Run | Yrd Mat Mat Machines Disabled 1 | . 1 . Max in Single Turn 1 | . 1 . Machines Repaired . | . . . Machines Dismantled . | . . . Machines Sabotaged . | . . . Overloaded Fab Kills . | . . . Hacking | -11 -10 -9 --------- Run | Yrd Mat Mat Machines Accessed 5 | . 4 1 Terminals 4 | . 3 1 Fabricators . | . . . Repair Stations . | . . . Recycling Units 1 | . 1 . Scanalyzers . | . . . Garrison Access . | . . . Total Hacks 17 | . 13 4 Successful 11 | . 8 3 Failed 6 | . 5 1 Catastrophic . | . . . Database Lockouts . | . . . Manual . | . . . Terminals 13 | . 9 4 Fabricators . | . . . Repair Stations . | . . . Recycling Units 4 | . 4 . Scanalyzers . | . . . Garrison Access . | . . . Terminal Hacks 8 | . 5 3 Record 4 | . 2 2 Prototype ID Bank 1 | . 1 . Alert Level 2 | . 1 1 Dispatch Records 1 | . 1 . Fabricator Hacks . | . . . Repair Station Hacks . | . . . Recycling Unit Hacks 3 | . 3 . Recycle Component 1 | . 1 . Retrieve Matter 1 | . 1 . Retrieve Components 1 | . 1 . Scanalyzer . | . . . Garrison Access Hacks . | . . . Unauthorized Hacks . | . . . Terminals . | . . . Fabricators . | . . . Repair Stations . | . . . Recycling Units . | . . . Scanalyzers . | . . . Garrison Access . | . . . Data Cores Recovered . | . . . Used . | . . . Hacking Detections 5 | . 4 1 Full Trace Events 3 | . 3 . Feedback Events . | . . . Feedback Blocked . | . . . Robot Schematics Acquired . | . . . Robots Built . | . . . Authchips . | . . . Time . | . . . Total Robot Build Rating . | . . . Part Schematics Acquired . | . . . Parts Built . | . . . Authchips . | . . . Time . | . . . Total Part Build Rating . | . . . Parts Repaired . | . . . Time . | . . . Parts Recycled 1 | . 1 . Recycled Matter . | . . . Retrieved Matter . | . . . Retrieved Components 2 | . 2 . Parts Scanalyzed . | . . . Part Schematics Acquired . | . . . Parts Damaged . | . . . Bothacking | -11 -10 -9 ------------ Run | Yrd Mat Mat Used RIF Installer . | . . . Robots Hacked . | . . . Non-combat . | . . . Combat . | . . . Robot Hacks Applied . | . . . Relay Couplers Released . | . . . Fabnet Peak Effective % . | . . . Robots Rewired . | . . . Allies Hacked . | . . . Hacks Repelled . | . . . Allies | -11 -10 -9 -------- Run | Yrd Mat Mat Total Allies . | . . . Largest Group . | . . . Highest-Rated Group . | . . . Highest-Rated Ally . | . . . Total Orders . | . . . Ally Attacks . | . . . Total Damage . | . . . Kills . | . . . Allies Corrupted . | . . . Allies Melted . | . . . Intel | -11 -10 -9 ------- Run | Yrd Mat Mat Robot Analysis Total . | . . . Derelict Logs Recovered . | . . . Drone Launches . | . . . Drone Recoveries . | . . . Exploration | -11 -10 -9 ------------- Run | Yrd Mat Mat Turns Passed 766 | 78 416 272 Spaces Moved 370 | 43 207 120 Core 6 | 6 . . Treads 270 | 37 207 26 Legs 94 | . . 94 Wheels . | . . . Hover . | . . . Flight . | . . . Fastest Speed 50 | 50 160 120 Average Speed 148 | 144 160 129 Slowest Speed 190 | 160 160 190 Overloaded Moves . | . . . Propulsion Burnouts . | . . . Robots Hopped . | . . . Cave-ins Triggered . | . . . Exploration Rate (%) 18 | 4 41 10 Regions Visited 2 Branch Regions . Pre-discovered Areas . | . . . Known Exits Taken 1 | . 1 . Unknown Exits Taken 1 | 1 . . Scrap Searched . | . . . Spaces Dug . | . . . Terrain Destroyed 114 | . 114 . Melee . | . . . Projectile . | . . . AOE 114 | . 114 . Terrain Rammed . | . . . Walls Destroyed . | . . . Machines Disabled . | . . . Actions | -11 -10 -9 --------- Run | Yrd Mat Mat Total 525 | 59 248 218 Wait 56 | . . 56 Move 368 | 42 206 120 Hop . | . . . Pick Up 25 | 9 7 9 Fast Attach 3 | . 1 2 Attach 15 | 7 3 5 Detach 2 | . . 2 Swap 5 | . 1 4 Drop 14 | 1 4 9 Fire 36 | . 25 11 Melee . | . . . Ram . | . . . Kick . | . . . Crush 1 | . 1 . Escape Stasis . | . . . Rewire . | . . . Trap . | . . . Miscellaneous . | . . . Route ------- -11/Scrapyard -10/Materials -9/Materials History --------- Turn | Location | Event 14 | -11/Scrapyard | Discovered new exit (range 15) 79 | -11/Scrapyard | Entered Materials 312 | -10/Materials | Build established: Mutant 412 | -10/Materials | Discovered new exit (range 12) 458 | -10/Materials | Identified exit to Materials 495 | -10/Materials | Entered another Materials area 495 | -9/Materials | Evolved 2 slots: Power x1, Weapon x1 746 | -9/Materials | Core integrity fell below 50% 762 | -9/Materials | Core integrity fell below 20% 767 | -9/Materials | Destroyed by G-34 Mercenary with Small Laser Last Messages --------------- Acquired Lgt. EM Pulse Cannon. R-06 Scavenger collects Ion Engine. R-06 Scavenger collects Heat Sink. R-06 Scavenger collects Lgt. Treads. S-10 Pest destroyed. Acquired 20 matter. Acquired 18 matter. S-10 Pest suffers critical hit (Burn). Imp. Aluminum Leg destroyed. Lgt. EM Pulse Cannon destroyed. Critical hit (Burn: +37). Imp. Aluminum Leg destroyed. Lgt. Ion Engine destroyed. U-05 Engineer suffers critical hit (Burn). Lgt. EM Pulse Cannon destroyed. Beam Rifle destroyed. Critical hit (Burn: +37). Core Shielding destroyed. U-05 Engineer destroyed. Y-45 Defender IFF system glitched. Map ----- +----------------------------------------------------+ | ?????????????????????????????????????????????????? | | ?????????????????????????????????????????????????? | | ?????????????????????????????????????????????????? | | ?????????????????????????????????????????????????? | | ?????????????????????????????????????????????????? | | ???????????????? ???????????????????????????????? | | ???????????????# ??????????????????????????????? | | ???????????????+ ??????????????????????????##### | | ???????????????? ??????????????????????????# | | ???????????????? ??????????????????????????#= | | ????????????????# ??????????????########????#= | | ????????????????# ?????????????# [[ ] #????# | | ????????????????# ?????????????# ]== #????# | | ????????????????# ?????????????# #????# | | ????????????????# ?????????????# #????# | | ????????????????# ?????????????# [ #????# | | ???????????????## ##???????????# #????# | | ???????????????# #################+########### | | ???????????????# = | | ???????????????# | | ???????????????# | | ???????????????# ###/#############+########## | | ???????????????## ## sgY #??????# #?????# | | ????????????????# ?# = #??????# #?????# | | ????????????????# ?# %== #??????# " #?????# | | ????????????????# ?# !@ #??????# T #?????## | | ???????????????? ?# #??????# " ! #??????? | | ??????????????? ?# #??????# #??????? | | ?????????????? ??########??????########??????? | | ?????????????### ??????????????????????????????? | | ???????????????####??????????????????????????????? | | ?????????????????????????????????????????????????? | | | | | | | | | | | | | | | | | | | | | | | | | | | | | | | | | | | | | +----------------------------------------------------+ Best States ------------- Heat Dissipation 28 Energy Generation 10 Energy Capacity 250 Matter Stores 245 Matter Capacity 300 Sight Range 16 Terrain Scan Density 10 ECM Strength 1 Core Shielding 20 Evasion (%) 55 Recoil Reduction 2 Item Schematics ----------------- None Robot Schematics ------------------ None Fabricated ------------ Nothing Alien Tech Used ----------------- None Achievements -------------- None Challenges ------------ None Game ------ Seed NuclearGhostNanosword Manual? 0 Play Time 00:12:07 Cumulative 1.4 hours Start 2024.03.18 @ 23:43:50 End 2024.03.18 @ 23:55:00 Sessions 1 Manual Loads 0 Difficulty Rogue Special Mode None Game No. 5 Rogue 5 Adventurer 0 Explorer 0 Win Type - Total 0 Types 0/0/0/0/0/0/0/0/0 Lore% 3 Gallery% 6 Achievement% 5 Wizard Run 0 Options --------- Layout 1 ASCII 0 Keyboard 0 Movement Mouse Keybinds 0 Fullscreen 2 Font 32/SmallcapsGlow Map View 50x35 Zoom Use 0% Tactical HUD 0 Map Filters NONE Filters NONE Steam 1 RUN: 845653cc-79bb-4066-b8d6-cbed3b1d37d9